fUST/lending_fUST_20240613
["ID","MTS","AMOUNT","RATE_DAILY","PERIOD"]
[329290327,1718218261231,-2159.14,0.00019726,2]
[329290328,1718218261241,-500.0,0.00019726,2]
[329290329,1718218261252,-151.0,0.00019726,2]
[329290330,1718218261262,-376.427566,0.00019726,2]
[329290331,1718218261273,-376.427566,0.00019726,2]
[329290332,1718218261283,-1686.97,0.00019726,2]
[329290333,1718218261294,-826.24,0.00019726,2]
[329290334,1718218261304,-789.26,0.00019726,2]
[329290335,1718218261315,-925.88,0.00019726,2]
[329290336,1718218261326,-1952.53,0.00019726,2]
[329290337,1718218261336,-1416.41,0.00019726,2]
[329290338,1718218261347,-151.0,0.00019726,2]
[329290339,1718218261358,-202.7,0.00019783,2]
[329290340,1718218261371,-151.0,0.00019783,2]
[329290341,1718218261381,-151.0,0.000198,2]
[329290342,1718218261392,-151.0,0.000198,2]
[329290343,1718218261403,-227.987282,0.000198,2]
[329290344,1718218261414,-227.987282,0.000198,2]
[329290345,1718218261424,-128094.3314435,0.00019888,2]
[329290351,1718218680560,1634.96837005,9.999e-05,7]
[329290352,1718218687776,164.5734904,9.999e-05,2]
[329290353,1718218777879,156.97954424,9.999e-05,2]
[329290356,1718219120056,1634.96837005,9.999e-05,7]
[329290357,1718219163630,164.5734904,9.999e-05,2]
[329290358,1718219203429,156.97954424,9.999e-05,2]
[329290360,1718219268558,309.23285522,9.999e-05,2]
[329290589,1718219439029,-164.5734904,0.00016328,2]
[329290591,1718219439041,-156.97954424,0.00016329,2]
[329290593,1718219439054,-300.0,0.00016336,2]
[329290595,1718219439065,-687.55415781,0.00016336,2]
[329290597,1718219439077,-552.89399516,0.00016336,2]
[329290599,1718219439092,-216.14213589,0.00016336,2]
[329290601,1718219439105,-1632.68262109,0.00016336,7]
[329290603,1718219439118,-175.18934434,0.00016336,2]
[329290605,1718219439135,-155.34472998,0.00016336,7]
[329290607,1718219439147,-3357.36001064,0.00016337,2]
[329290609,1718219439163,-720.89903804,0.00016337,2]
[329290611,1718219439180,-164.68563506,0.00016337,2]
[329290613,1718219439194,-192.18691292,0.00016338,2]
[329290614,1718219439207,-1787.67213173,0.00016338,2]
[329290617,1718219439227,-1370.3885928,0.00016338,2]
[329290619,1718219439244,-1784.75558405,0.00016338,2]
[329290621,1718219439264,-997.71648,0.00016338,2]
[329290630,1718219439367,-36822.29174062,0.00016338,2]
[329290633,1718219439381,-500.0,0.00016438,2]
[329290635,1718219439394,-500.0,0.00016438,2]
[329290637,1718219439407,-500.0,0.00016438,2]
[329290639,1718219439419,-500.0,0.00016438,2]
[329290641,1718219439431,-500.0,0.00016438,4]
[329290642,1718219439442,-625.903157,0.00016438,2]
[329290644,1718219439454,-500.0,0.00016438,2]
[329290647,1718219439472,-500.0,0.00016438,2]
[329290649,1718219439488,-500.0,0.00016438,2]
[329290651,1718219439524,-500.0,0.00016438,2]
[329290653,1718219439536,-500.0,0.00016438,2]
[329290655,1718219439549,-500.0,0.00016438,2]
[329290657,1718219439561,-727.62,0.00016438,2]
[329290659,1718219439573,-500.0,0.00016438,2]
[329290661,1718219439586,-500.0,0.00016438,2]
[329290663,1718219439603,-500.0,0.00016438,2]
[329290665,1718219439614,-809.73,0.00016438,2]
[329290667,1718219439627,-500.0,0.00016438,2]
[329290669,1718219439641,-500.0,0.00016438,2]
[329290671,1718219439655,-500.0,0.00016438,2]
[329290673,1718219439670,-500.0,0.00016438,2]
[329290675,1718219439681,-705.79,0.00016438,2]
[329290678,1718219439700,-445.18624232,0.00016438,2]
[329290680,1718219439716,-54.81375768,0.00016438,2]
[329290682,1718219439732,-500.0,0.00016438,2]
[329290684,1718219439748,-276.23015115,0.00016438,2]
[329290686,1718219439760,-500.0,0.00016438,2]
[329290688,1718219439775,-500.0,0.00016438,2]
[329290690,1718219439785,-692.85,0.00016438,2]
[329290692,1718219439798,-500.0,0.00016438,2]
[329290693,1718219439808,-500.0,0.00016438,2]
[329290696,1718219439822,-500.0,0.00016438,2]
[329290698,1718219439834,-500.0,0.00016438,2]
[329290700,1718219439848,-645.46,0.00016438,2]
[329290702,1718219439860,-500.0,0.00016438,2]
[329290704,1718219439873,-500.0,0.00016438,2]
[329290706,1718219439887,-500.0,0.00016438,2]
[329290708,1718219439898,-500.0,0.00016438,2]
[329290710,1718219439909,-795.72,0.00016438,2]
[329290712,1718219439920,-500.0,0.00016438,2]
[329290714,1718219439932,-528.84,0.00016438,2]
[329290716,1718219439945,-500.0,0.00016438,2]
[329290718,1718219439957,-500.0,0.00016438,2]
[329290720,1718219439968,-500.0,0.00016438,2]
[329290722,1718219439981,-500.0,0.00016438,2]
[329290724,1718219439991,-500.0,0.00016438,2]
[329290726,1718219440002,-500.0,0.00016438,2]
[329290728,1718219440013,-500.0,0.00016438,2]
[329290730,1718219440025,-500.0,0.00016438,2]
[329290732,1718219440036,-500.0,0.00016438,2]
[329290734,1718219440047,-500.0,0.00016438,2]
[329290736,1718219440058,-500.0,0.00016438,2]
[329290738,1718219440070,-500.0,0.00016438,2]
[329290740,1718219440082,-500.0,0.00016438,2]
[329290742,1718219440093,-500.0,0.00016438,2]
[329290744,1718219440105,-500.0,0.00016438,2]
[329290746,1718219440116,-500.0,0.00016438,2]
[329290748,1718219440129,-500.0,0.00016438,2]
[329290750,1718219440140,-500.0,0.00016438,2]
[329290752,1718219440151,-500.0,0.00016438,2]
[329290754,1718219440163,-630.02,0.00016438,2]
[329290756,1718219440176,-500.0,0.00016438,2]
[329290758,1718219440187,-500.0,0.00016438,2]
[329290760,1718219440199,-500.0,0.00016438,2]
[329290762,1718219440210,-500.0,0.00016438,2]
[329290764,1718219440221,-724.31,0.00016438,2]
[329290765,1718219440234,-500.0,0.00016438,2]
[329290767,1718219440246,-500.0,0.00016438,2]
[329290769,1718219440261,-500.0,0.00016438,2]
[329290771,1718219440275,-501.06,0.00016438,2]
[329290773,1718219440286,-500.0,0.00016438,2]
[329290775,1718219440297,-500.0,0.00016438,2]
[329290777,1718219440312,-756.88,0.00016438,2]
[329290779,1718219440323,-555.3140995,0.00016438,2]
[329290781,1718219440337,-500.0,0.00016438,2]
[329290783,1718219440349,-500.0,0.00016438,2]
[329290785,1718219440361,-500.0,0.00016438,2]
[329290787,1718219440374,-500.0,0.00016438,2]
[329290789,1718219440387,-500.0,0.00016438,2]
[329290791,1718219440399,-500.0,0.00016438,2]
[329290793,1718219440410,-500.0,0.00016438,2]
[329290795,1718219440422,-500.0,0.00016438,2]
[329290797,1718219440434,-500.0,0.00016438,2]
[329290799,1718219440446,-234.96939306,0.00016438,2]
[329290801,1718219440457,-500.0,0.00016438,2]
[329290803,1718219440469,-500.0,0.00016438,2]
[329290805,1718219440486,-500.0,0.00016438,2]
[329290807,1718219440500,-500.0,0.00016438,2]
[329290808,1718219440528,-500.0,0.00016438,2]
[329290810,1718219440545,-500.0,0.00016438,2]
[329290812,1718219440560,-504.0,0.00016438,2]
[329290814,1718219440576,-504.0,0.00016438,2]
[329290816,1718219440592,-504.0,0.00016438,2]
[329290818,1718219440607,-500.0,0.00016438,2]
[329290820,1718219440621,-500.0,0.00016438,2]
[329290822,1718219440634,-500.0,0.00016438,2]
[329290824,1718219440646,-500.0,0.00016438,2]
[329290826,1718219440659,-532.27,0.00016438,2]
[329290828,1718219440670,-500.0,0.00016438,2]
[329290830,1718219440683,-500.0,0.00016438,2]
[329290832,1718219440696,-1627.38,0.00016438,2]
[329290834,1718219440707,-500.0,0.00016438,2]
[329290836,1718219440723,-500.0,0.00016438,2]
[329290838,1718219440758,-885.33,0.00016438,2]
[329290839,1718219440772,-3819.42,0.00016438,2]
[329290841,1718219440786,-831.55,0.00016438,2]
[329290844,1718219440818,-4354.42,0.00016438,2]
[329290846,1718219440837,-500.0,0.00016438,2]
[329290848,1718219440852,-889.28,0.00016438,2]
[329290851,1718219440867,-500.0,0.00016438,2]
[329290853,1718219440886,-500.0,0.00016438,2]
[329290855,1718219440912,-500.0,0.00016438,2]
[329290857,1718219440944,-500.0,0.00016438,2]
[329290859,1718219440960,-500.0,0.00016438,2]
[329290860,1718219440980,-500.0,0.00016438,2]
[329290862,1718219440993,-500.0,0.00016438,2]
[329290864,1718219441006,-500.0,0.00016438,2]
[329290866,1718219441019,-500.0,0.00016438,2]
[329290868,1718219441033,-688.26,0.00016438,2]
[329290870,1718219441050,-500.0,0.00016438,2]
[329290872,1718219441066,-431.6908566,0.00016438,2]
[329290874,1718219441078,-8021.14,0.00016438,2]
[329290876,1718219441091,-4337.83,0.00016438,2]
[329290880,1718219441132,-500.0,0.00016438,2]
[329290882,1718219441143,-500.0,0.00016438,2]
[329290884,1718219441153,-2012.3,0.00016438,2]
[329290886,1718219441166,-500.0,0.00016438,2]
[329290887,1718219441176,-2324.41,0.00016438,2]
[329290889,1718219441188,-500.0,0.00016438,2]
[329290891,1718219441198,-500.0,0.00016438,2]
[329290893,1718219441211,-500.0,0.00016438,2]
[329290895,1718219441222,-500.0,0.00016438,2]
[329290897,1718219441231,-500.0,0.00016438,2]
[329290901,1718219441245,-477.22471711,0.00016438,2]
[329290904,1718219441259,-500.0,0.00016438,2]
[329290906,1718219441270,-726.26,0.00016438,2]
[329290908,1718219441285,-500.0,0.00016438,2]
[329290911,1718219441297,-505.92347686,0.00016438,2]
[329290913,1718219441308,-500.0,0.00016438,2]
[329290915,1718219441320,-500.0,0.00016438,2]
[329290917,1718219441332,-500.0,0.00016438,2]
[329290919,1718219441344,-500.0,0.00016438,2]
[329290921,1718219441356,-500.0,0.00016438,2]
[329290923,1718219441367,-500.0,0.00016438,2]
[329290925,1718219441378,-500.0,0.00016438,2]
[329290927,1718219441388,-500.0,0.00016438,2]
[329290929,1718219441399,-832.21,0.00016438,2]
[329290931,1718219441409,-500.0,0.00016438,2]
[329290933,1718219441420,-500.0,0.00016438,2]
[329290935,1718219441431,-500.0,0.00016438,2]
[329290937,1718219441442,-1009.09,0.00016438,2]
[329290939,1718219441452,-5284.22,0.00016438,2]
[329290941,1718219441463,-500.0,0.00016438,2]
[329290943,1718219441473,-500.0,0.00016438,2]
[329290945,1718219441484,-500.0,0.00016438,2]
[329290947,1718219441495,-500.0,0.00016438,2]
[329290949,1718219441520,-946.24,0.00016438,2]
[329290950,1718219441531,-500.0,0.00016438,2]
[329290952,1718219441542,-1737.34,0.00016438,2]
[329290954,1718219441553,-500.0,0.00016438,2]
[329290956,1718219441564,-632.37,0.00016438,2]
[329290957,1718219441574,-500.0,0.00016438,2]
[329290958,1718219441585,-181.60112382,0.00016438,2]
[329290959,1718219441595,-500.0,0.00016438,2]
[329290960,1718219441606,-1464.84,0.00016438,2]
[329290961,1718219441616,-500.0,0.00016438,2]
[329290962,1718219441626,-500.0,0.00016438,2]
[329290963,1718219441636,-500.0,0.00016438,2]
[329290964,1718219441647,-500.0,0.00016438,2]
[329290965,1718219441660,-500.0,0.00016438,2]
[329290966,1718219441670,-272.45,0.00016438,2]
[329290967,1718219441681,-500.0,0.00016438,2]
[329290969,1718219441692,-500.0,0.00016438,2]
[329290970,1718219441703,-500.0,0.00016438,2]
[329290971,1718219441714,-602.9,0.00016438,2]
[329290972,1718219441726,-500.0,0.00016438,2]
[329290973,1718219441737,-500.0,0.00016438,2]
[329290974,1718219441748,-500.0,0.00016438,2]
[329290975,1718219441760,-500.0,0.00016438,2]
[329290976,1718219441771,-500.0,0.00016438,2]
[329290977,1718219441784,-500.0,0.00016438,2]
[329290979,1718219441797,-500.0,0.00016438,2]
[329290981,1718219441808,-500.0,0.00016438,2]
[329290983,1718219441819,-500.0,0.00016438,2]
[329290984,1718219441830,-500.0,0.00016438,2]
[329290986,1718219441841,-500.0,0.00016438,2]
[329290988,1718219441853,-500.0,0.00016438,2]
[329290989,1718219441867,-1286.96,0.00016438,2]
[329290991,1718219441880,-503.96156133,0.00016438,2]
[329290993,1718219441892,-500.0,0.00016438,2]
[329290994,1718219441903,-398.44629751,0.00016438,2]
[329290996,1718219441914,-500.0,0.00016438,2]
[329290998,1718219441924,-504.0,0.00016557,2]
[329290999,1718219441935,-500.0,0.00016557,2]
[329291001,1718219441946,-504.0,0.00016711,2]
[329291002,1718219441958,-504.0,0.00016711,2]
[329291003,1718219441968,-504.0,0.00016711,2]
[329291004,1718219441980,-500.0,0.00016711,2]
[329291005,1718219441991,-500.0,0.00016711,2]
[329291006,1718219442001,-500.0,0.00016711,2]
[329291007,1718219442013,-500.0,0.00016711,2]
[329291008,1718219442023,-500.0,0.00016711,2]
[329291009,1718219442034,-500.0,0.00016711,2]
[329291010,1718219442048,-500.0,0.00016711,2]
[329291011,1718219442062,-86336.0359707,0.00016712,15]
[329291012,1718219442073,-500.0,0.00016712,2]
[329291013,1718219442085,-584.80523407,0.00016712,2]
[329291014,1718219442095,-500.0,0.00016712,4]
[329291015,1718219442108,-513.05966408,0.00016712,2]
[329291016,1718219442119,-500.0,0.00016712,2]
[329291017,1718219442130,-500.0,0.00016712,2]
[329291018,1718219442141,-162.32685027,0.00016712,2]
[329291019,1718219442152,-500.0,0.00016712,2]
[329291020,1718219442162,-727.62,0.00016712,2]
[329291021,1718219442173,-500.0,0.00016712,2]
[329291022,1718219442186,-626.10224753,0.00016712,2]
[329291023,1718219442197,-809.73,0.00016712,2]
[329291024,1718219442208,-500.0,0.00016712,2]
[329291025,1718219442218,-500.0,0.00016712,2]
[329291026,1718219442230,-500.0,0.00016712,2]
[329291027,1718219442241,-705.79,0.00016712,2]
[329291028,1718219442252,-500.0,0.00016712,2]
[329291029,1718219442267,-500.0,0.00016712,2]
[329291030,1718219442280,-500.0,0.00016712,2]
[329291031,1718219442290,-692.85,0.00016712,2]
[329291032,1718219442305,-500.0,0.00016712,2]
[329291033,1718219442316,-500.0,0.00016712,2]
[329291034,1718219442330,-176.49226442,0.00016712,2]
[329291035,1718219442343,-645.46,0.00016712,2]
[329291036,1718219442354,-500.0,0.00016712,2]
[329291037,1718219442365,-268.5794634,0.00016712,2]
[329291038,1718219442376,-500.0,0.00016712,2]
[329291039,1718219442387,-795.72,0.00016712,2]
[329291040,1718219442400,-500.0,0.00016712,2]
[329291041,1718219442412,-528.84,0.00016712,2]
[329291042,1718219442422,-500.0,0.00016712,2]
[329291043,1718219442433,-500.0,0.00016712,2]
[329291044,1718219442444,-500.0,0.00016712,2]
[329291045,1718219442455,-500.0,0.00016712,2]
[329291046,1718219442466,-500.0,0.00016712,2]
[329291047,1718219442484,-500.0,0.00016712,2]
[329291048,1718219442495,-500.0,0.00016712,2]
[329291049,1718219442528,-500.0,0.00016712,2]
[329291050,1718219442540,-233.99007782,0.00016712,2]
[329291051,1718219442551,-500.0,0.00016712,2]
[329291052,1718219442564,-500.0,0.00016712,2]
[329291053,1718219442576,-500.0,0.00016712,2]
[329291054,1718219442588,-500.0,0.00016712,2]
[329291055,1718219442599,-500.0,0.00016712,2]
[329291056,1718219442610,-500.0,0.00016712,2]
[329291057,1718219442622,-500.0,0.00016712,2]
[329291058,1718219442640,-500.0,0.00016712,2]
[329291060,1718219442655,-630.02,0.00016712,2]
[329291061,1718219442668,-500.0,0.00016712,2]
[329291062,1718219442680,-724.31,0.00016712,2]
[329291063,1718219442692,-500.0,0.00016712,2]
[329291064,1718219442708,-500.0,0.00016712,2]
[329291065,1718219442720,-500.0,0.00016712,2]
[329291066,1718219442737,-501.06,0.00016712,2]
[329291067,1718219442749,-500.0,0.00016712,2]
[329291068,1718219442761,-756.88,0.00016712,2]
[329291069,1718219442790,-500.0,0.00016712,2]
[329291070,1718219442818,-500.0,0.00016712,2]
[329291071,1718219442833,-500.0,0.00016712,2]
[329291072,1718219442847,-500.0,0.00016712,2]
[329291073,1718219442862,-500.0,0.00016712,2]
[329291074,1718219442874,-500.0,0.00016712,2]
[329291075,1718219442890,-500.0,0.00016712,2]
[329291076,1718219442904,-500.0,0.00016712,2]
[329291077,1718219442916,-500.0,0.00016712,2]
[329291078,1718219442927,-500.0,0.00016712,2]
[329291079,1718219442938,-500.0,0.00016712,2]
[329291080,1718219442953,-500.0,0.00016712,2]
[329291081,1718219442964,-500.0,0.00016712,2]
[329291082,1718219442981,-500.0,0.00016712,2]
[329291083,1718219442992,-500.0,0.00016712,2]
[329291084,1718219443004,-500.0,0.00016712,2]
[329291085,1718219443015,-532.27,0.00016712,2]
[329291086,1718219443027,-500.0,0.00016712,2]
[329291087,1718219443039,-500.0,0.00016712,2]
[329291088,1718219443179,-1627.38,0.00016712,2]
[329291090,1718219443191,-500.0,0.00016712,2]
[329291092,1718219443203,-500.0,0.00016712,2]
[329291094,1718219443216,-885.33,0.00016712,2]
[329291095,1718219443229,-3819.42,0.00016712,2]
[329291096,1718219443240,-831.55,0.00016712,2]
[329291097,1718219443253,-4354.42,0.00016712,2]
[329291098,1718219443271,-500.0,0.00016712,2]
[329291099,1718219443285,-889.28,0.00016712,2]
[329291100,1718219443299,-500.0,0.00016712,2]
[329291101,1718219443311,-500.0,0.00016712,2]
[329291102,1718219443322,-500.0,0.00016712,2]
[329291103,1718219443333,-500.0,0.00016712,2]
[329291104,1718219443347,-500.0,0.00016712,2]
[329291105,1718219443361,-500.0,0.00016712,2]
[329291106,1718219443372,-500.0,0.00016712,2]
[329291107,1718219443383,-688.26,0.00016712,2]
[329291108,1718219443394,-403.79208584,0.00016712,2]
[329291109,1718219443405,-8021.14,0.00016712,2]
[329291110,1718219443417,-4337.83,0.00016712,2]
[329291111,1718219443430,-500.0,0.00016712,2]
[329291112,1718219443441,-500.0,0.00016712,2]
[329291113,1718219443452,-2012.3,0.00016712,2]
[329291114,1718219443463,-500.0,0.00016712,2]
[329291115,1718219443476,-2324.41,0.00016712,2]
[329291116,1718219443488,-500.0,0.00016712,2]
[329291117,1718219443498,-500.0,0.00016712,2]
[329291118,1718219443516,-726.26,0.00016712,2]
[329291119,1718219443527,-500.0,0.00016712,2]
[329291120,1718219443538,-500.0,0.00016712,2]
[329291121,1718219443548,-500.0,0.00016712,2]
[329291122,1718219443559,-500.0,0.00016712,2]
[329291123,1718219443569,-500.0,0.00016712,2]
[329291124,1718219443579,-500.0,0.00016712,2]
[329291125,1718219443589,-500.0,0.00016712,2]
[329291126,1718219443599,-832.21,0.00016712,2]
[329291127,1718219443609,-500.0,0.00016712,2]
[329291128,1718219443619,-500.0,0.00016712,2]
[329291129,1718219443630,-500.0,0.00016712,2]
[329291130,1718219443640,-1009.09,0.00016712,2]
[329291131,1718219443651,-5284.22,0.00016712,2]
[329291132,1718219443661,-500.0,0.00016712,2]
[329291133,1718219443671,-500.0,0.00016712,2]
[329291134,1718219443681,-500.0,0.00016712,2]
[329291135,1718219443693,-946.24,0.00016712,2]
[329291136,1718219443704,-500.0,0.00016712,2]
[329291137,1718219443715,-1737.34,0.00016712,2]
[329291138,1718219443728,-500.0,0.00016712,2]
[329291139,1718219443739,-500.0,0.00016712,2]
[329291140,1718219443751,-632.37,0.00016712,2]
[329291141,1718219443762,-500.0,0.00016712,2]
[329291142,1718219443773,-1464.84,0.00016712,2]
[329291143,1718219443784,-500.0,0.00016712,2]
[329291144,1718219443798,-500.0,0.00016712,2]
[329291145,1718219443809,-500.0,0.00016712,2]
[329291146,1718219443820,-500.0,0.00016712,2]
[329291147,1718219443831,-602.9,0.00016712,2]
[329291148,1718219443842,-500.0,0.00016712,2]
[329291149,1718219443853,-500.0,0.00016712,2]
[329291150,1718219443864,-500.0,0.00016712,2]
[329291151,1718219443875,-170.60701289,0.00016712,2]
[329291152,1718219443886,-500.0,0.00016712,2]
[329291153,1718219443897,-500.0,0.00016712,2]
[329291154,1718219443910,-500.0,0.00016712,2]
[329291155,1718219443922,-1286.96,0.00016712,2]
[329291156,1718219443933,-500.0,0.00016712,2]
[329291157,1718219443944,-504.0,0.00016985,2]
[329291158,1718219443958,-504.0,0.00016985,2]
[329291159,1718219443969,-258.1,0.00016985,2]
[329291160,1718219443986,-500.0,0.00016985,2]
[329291161,1718219443998,-500.0,0.00016985,2]
[329291162,1718219444009,-500.0,0.00016986,2]
[329291163,1718219444021,-500.0,0.00016986,4]
[329291164,1718219444032,-500.0,0.00016986,2]
[329291165,1718219444044,-500.0,0.00016986,2]
[329291166,1718219444057,-500.0,0.00016986,2]
[329291167,1718219444068,-208.92424899,0.00016986,2]
[329291168,1718219444210,-518.69575101,0.00016986,2]
[329291169,1718219444221,-809.73,0.00016986,2]
[329291170,1718219444233,-485.33,0.00016986,2]
[329291171,1718219444245,-500.0,0.00016986,2]
[329291172,1718219444261,-705.79,0.00016986,2]
[329291173,1718219444272,-500.0,0.00016986,2]
[329291174,1718219444285,-692.85,0.00016986,2]
[329291175,1718219444296,-500.0,0.00016986,2]
[329291176,1718219444308,-500.0,0.00016986,2]
[329291177,1718219444320,-645.46,0.00016986,2]
[329291178,1718219444330,-500.0,0.00016986,2]
[329291179,1718219444343,-795.72,0.00016986,2]
[329291180,1718219444354,-500.0,0.00016986,2]
[329291181,1718219444365,-528.84,0.00016986,2]
[329291182,1718219444376,-500.0,0.00016986,2]
[329291183,1718219444386,-500.0,0.00016986,2]
[329291184,1718219444397,-500.0,0.00016986,2]
[329291185,1718219444408,-500.0,0.00016986,2]
[329291186,1718219444418,-500.0,0.00016986,2]
[329291187,1718219444429,-500.0,0.00016986,2]
[329291188,1718219444440,-382.12203268,0.00016986,2]
[329291189,1718219444452,-500.0,0.00016986,2]
[329291190,1718219444464,-326.5893206,0.00016986,2]
[329291191,1718219444479,-500.0,0.00016986,2]
[329291192,1718219444492,-500.0,0.00016986,2]
[329291193,1718219444517,-500.0,0.00016986,2]
[329291194,1718219444532,-500.0,0.00016986,2]
[329291195,1718219444543,-500.0,0.00016986,2]
[329291196,1718219444554,-483.34614025,0.00016986,2]
[329291197,1718219444566,-630.02,0.00016986,2]
[329291198,1718219444578,-500.0,0.00016986,2]
[329291199,1718219444591,-724.31,0.00016986,2]
[329291200,1718219444603,-500.0,0.00016986,2]
[329291201,1718219444614,-500.0,0.00016986,2]
[329291202,1718219444626,-500.0,0.00016986,2]
[329291203,1718219444637,-501.06,0.00016986,2]
[329291204,1718219444648,-500.0,0.00016986,2]
[329291205,1718219444659,-756.88,0.00016986,2]
[329291206,1718219444669,-500.0,0.00016986,2]
[329291207,1718219444683,-632.75403515,0.00016986,2]
[329291208,1718219444694,-500.0,0.00016986,2]
[329291209,1718219444705,-500.0,0.00016986,2]
[329291210,1718219444716,-423.06029683,0.00016986,2]
[329291211,1718219444730,-500.0,0.00016986,2]
[329291212,1718219444740,-500.0,0.00016986,2]
[329291213,1718219444751,-500.0,0.00016986,2]
[329291214,1718219444763,-500.0,0.00016986,2]
[329291215,1718219444774,-545.34681441,0.00016986,2]
[329291216,1718219444785,-500.0,0.00016986,2]
[329291217,1718219444796,-500.0,0.00016986,2]
[329291218,1718219444807,-500.0,0.00016986,2]
[329291219,1718219444818,-532.27,0.00016986,2]
[329291220,1718219444828,-500.0,0.00016986,2]
[329291221,1718219444840,-500.0,0.00016986,2]
[329291222,1718219444851,-1627.38,0.00016986,2]
[329291223,1718219444862,-500.0,0.00016986,2]
[329291224,1718219444873,-93.58181362,0.00016986,2]
[329291256,1718219446580,-747.1,0.00016438,2]
[329291258,1718219446597,-747.1,0.00016712,2]
[329291259,1718219446613,-205.77832797,0.00016986,2]
[329291260,1718219447063,-200.63985841,0.00016986,2]
[329291261,1718219447073,-885.33,0.00016986,2]
[329291262,1718219447085,-427.09022906,0.00016986,2]
[329291264,1718219447100,-3392.32977094,0.00016986,2]
[329291265,1718219447115,-831.55,0.00016986,2]
[329291266,1718219447128,-4354.42,0.00016986,2]
[329291267,1718219447143,-500.0,0.00016986,2]
[329291268,1718219447155,-889.28,0.00016986,2]
[329291269,1718219447167,-500.0,0.00016986,2]
[329291270,1718219447180,-500.0,0.00016986,2]
[329291271,1718219447192,-500.0,0.00016986,2]
[329291272,1718219447204,-500.0,0.00016986,2]
[329291273,1718219447214,-500.0,0.00016986,2]
[329291274,1718219447227,-500.0,0.00016986,2]
[329291275,1718219447239,-688.26,0.00016986,2]
[329291276,1718219447249,-8021.14,0.00016986,2]
[329291277,1718219447265,-4337.83,0.00016986,2]
[329291278,1718219447276,-500.0,0.00016986,2]
[329291279,1718219447287,-2012.3,0.00016986,2]
[329291281,1718219447299,-500.0,0.00016986,2]
[329291282,1718219447310,-2324.41,0.00016986,2]
[329291283,1718219447320,-554.32114719,0.00016986,2]
[329291284,1718219447332,-12.49221307,0.00016986,2]
[329291295,1718219447924,-2002.74062318,0.00016438,2]
[329291296,1718219447989,-1339.24937682,0.00016438,2]
[329291297,1718219448000,-713.76778693,0.00016986,2]
[329291298,1718219448011,-500.0,0.00016986,2]
[329291299,1718219448022,-500.0,0.00016986,2]
[329291300,1718219448033,-500.0,0.00016986,2]
[329291301,1718219448043,-500.0,0.00016986,2]
[329291302,1718219448054,-500.0,0.00016986,2]
[329291303,1718219448065,-832.21,0.00016986,2]
[329291304,1718219448076,-500.0,0.00016986,2]
[329291305,1718219448086,-500.0,0.00016986,2]
[329291306,1718219448097,-500.0,0.00016986,2]
[329291307,1718219448108,-1009.09,0.00016986,2]
[329291308,1718219448118,-5284.22,0.00016986,2]
[329291309,1718219448129,-500.0,0.00016986,2]
[329291310,1718219448140,-500.0,0.00016986,2]